Cogmind - Beta 17 @@@ ROGUE MODE // 2026.06.22 @ 22:44:54 Player: VC94 Result: Destroyed by Y-45 Defender with Beam Rifle Performance ------------- Evolutions (1) 500 Regions Visited (2) 400 Robots Destroyed (32) 160 Value Destroyed (810) 810 Prototype IDs (0) 0 Alien Tech Used (0) 0 Bonus (0) 0 TOTAL SCORE: 1870 Bonus ------- None Cogmind --------- Core Integrity 0/400 Matter 300/300 Energy 140/140 System Corruption 3% Temperature Hot (230) Movement Rolling (80) Location -9/Materials Parts ------- > --- POWER (1) -------- Light Deuterium Engine > --- PROPULSION (2) --- Armored Wheel > --- UTILITY (4) ------ Recoil Stabilizer System Shield System Shield > --- WEAPON (2) ------- Medium Laser > --- INVENTORY (5) ---- Light Deuterium Engine Light Deuterium Engine Light Nuclear Core Advanced Visual Processing Unit Advanced Visual Processing Unit Peak State ------------ > --- POWER ------------ Light Deuterium Engine > --- PROPULSION ------- Wheel Armored Wheel > --- UTILITY ---------- Recoil Stabilizer Recoil Stabilizer System Shield System Shield > --- WEAPON ----------- Heavy EM Pulse Gun Beam Cannon > --- INVENTORY -------- Light Deuterium Engine Small Battery Advanced Visual Processing Unit Advanced Visual Processing Unit [Rating: 22] Favorites ----------- Power Light Ion Engine Engine Light Ion Engine Propulsion Aluminum Leg Leg Aluminum Leg Wheel Subdweller Monowheel Flight Unit Flight Unit Utility Small Storage Unit Device Heat Sink Storage Small Storage Unit Processor Targeting Computer Hackware System Shield Protection Improved Light Armor Plating Weapon Medium Laser Energy Gun Medium Laser Energy Cannon Beam Cannon Ballistic Gun Assault Rifle Launcher Concussive RPG Special Weapon Plasma Cutter Build | -11 -10 -9 ------- Run | Yrd Mat Mat Slots Evolved 2 | . . 2 Power . | . . . Propulsion . | . . . Utility 2 | . . 2 Weapon . | . . . Parts Attached 40 | 6 12 22 Power 6 | 1 2 3 Engine 6 | 1 2 3 Core . | . . . Reactor . | . . . Propulsion 12 | 2 5 5 Treads . | . . . Leg 3 | 2 1 . Wheel 4 | . 2 2 Hover . | . . . Flight 5 | . 2 3 Utility 10 | 1 2 7 Device 3 | . 1 2 Storage 1 | 1 . . Processor 1 | . 1 . Hackware 3 | . . 3 Protection 2 | . . 2 Artifact . | . . . Weapon 12 | 2 3 7 Energy Gun 6 | 2 1 3 Energy Cannon 1 | . . 1 Ballistic Gun 3 | . 2 1 Ballistic Cannon . | . . . Launcher 1 | . . 1 Special Weapon 1 | . . 1 Impact Weapon . | . . . Slashing Weapon . | . . . Piercing Weapon . | . . . Special Melee Weapon . | . . . Unidentified Prototypes . | . . . Parts Lost 17 | . 4 13 Power 3 | . 1 2 Propulsion 4 | . 2 2 Utility 4 | . . 4 Weapon 6 | . 1 5 Highest Loss Streak 4 | . 4 4 To Critical Strikes . | . . . Average Backups 3 | 2 3 4 Power . | . . . Propulsion . | . . . Utility 1 | . 1 3 Weapon . | 1 . . Tool/Special . | . . . Unused Backups 9 | . 2 7 Power 2 | . . 2 Propulsion 2 | . 2 . Utility 3 | . . 3 Weapon 1 | . . 1 Tool/Special 1 | . . 1 Average Slot Usage (%) 74 | . 86 59 Engine 10 | . 13 7 Leg 9 | . 15 . Wheel 7 | . 2 13 Flight 5 | . 8 1 Device 4 | . 5 1 Storage 10 | . 14 5 Processor 2 | . 1 3 Hackware 2 | . . 6 Protection 1 | . . 3 Energy Gun 13 | . 17 7 Ballistic Gun 5 | . 6 4 Peak Build Rating 22 | 6 9 22 Average Rating 7 | 3 6 9 On Entrance 5 | . 6 9 Avg Prop Armor Cover (%) . | . . . Naked Turns . | . . . Heaviest Build 16 | 12 14 16 Greatest Support 30 | 20 30 30 Greatest Overweight (x) 3 | 2 2 3 Average Overweight (x) . | . . . Largest Inventory Capacity 8 | 8 8 8 Average Capacity 7 | 7 8 6 Most Carried 8 | 6 6 8 Average Carried 3 | 2 3 4 Final Capacity 8 | 8 8 5 Final Carried 5 | 2 3 5 Class Distribution -------------------- 81% | Mutant 14% | Hacker-Mutant 4% | Scavenger-Mutant Dominant Class ---------------- Mutant | -10/Materials Mutant | -9/Materials Resources | -11 -10 -9 ----------- Run | Yrd Mat Mat Matter Collected 727 | 125 359 243 Remotely . | . . . Salvage Created 1000 | . 609 391 Parts 67 | . 36 31 Haulers Intercepted . | . . . Recyclers Shooed 1 | . 1 . Parts Field Recycled . | . . . Retrieved Matter . | . . . Parts Self-Destructed . | . . . Prevented . | . . . Parts Restored . | . . . Kills | -11 -10 -9 ------- Run | Yrd Mat Mat Combat Hostiles Destroyed 25 | . 17 8 Guns 22 | . 16 6 Cannons 1 | . . 1 AOE 1 | . . 1 Classes Destroyed 8 | . 5 3 Worker 2 | . 1 1 Builder 3 | . . 3 Tunneler 1 | . 1 . Watcher 1 | . . 1 Swarmer 9 | . 6 3 Grunt 12 | . 9 3 Sentry 2 | . . 2 Subdweller 2 | . 2 . Best Kill Streak 6 | . 6 4 Combat Bots Only 4 | . 4 4 Max Kills in Single Turn 2 | . 2 1 Gunslinging 1 | . 1 . Exploded 1 | . . 1 Melee . | . . . Uniques/NPCs Destroyed . | . . . Combat | -11 -10 -9 -------- Run | Yrd Mat Mat Hostile Shots Fired 217 | . 87 130 Missed 59 | . 25 34 Hits 158 | . 62 96 Projectile 158 | . 62 96 Critical Strikes 5 | . . 5 Part Disruptions 1 | . . 1 Damage Taken 2308 | . 840 1468 Core 615 | . 203 412 Absorbed by Shields . | . . . Core Remaining (%) 59 | 100 18 . Volleys Fired 102 | . 60 42 Largest 2 | . 2 2 Hottest 110 | . 100 110 Shots Fired 171 | . 112 59 Gun 162 | . 112 50 Cannon 8 | . . 8 Launcher 1 | . . 1 Special . | . . . Kinetic 63 | . 43 20 Thermal 80 | . 69 11 Explosive 1 | . . 1 Electromagnetic 27 | . . 27 Robot Hit Streak 13 | . 13 7 Robot Miss Streak 4 | . 4 2 Penetration Max . | . . . Secondary Targets 1 | . 1 . Max Gunslinging Chain 1 | . 1 . Shots Hit Robots 123 | . 80 43 Core Hits 53 | . 32 21 Critical Kills . | . . . Critical Parts Destroyed . | . . . Critical Strikes 8 | . 8 . Burn 8 | . 8 . Melee Attacks . | . . . Impact . | . . . Slashing . | . . . Piercing . | . . . Sneak Attacks . | . . . Combat Hostiles . | . . . Follow-up Attacks . | . . . Damage Inflicted 2326 | . 1248 1078 Guns 1674 | . 1070 604 Cannons 70 | . . 70 Explosions 514 | . 167 347 Melee . | . . . Ramming 68 | . 11 57 Kinetic 642 | . 412 230 Thermal 1038 | . 658 380 Explosive 27 | . . 27 Electromagnetic 551 | . 167 384 Impact . | . . . Slashing . | . . . Piercing . | . . . Highest Corruption 3 | . . 3 Average Corruption 3 | . . 3 Corruption Purged . | . . . Corruption Blocked . | . . . Effects 9 | . . 9 Matter Fused 2 | . . 2 Heat Flow Errors 2 | . . 2 Parts Rejected 1 | . . 1 Data Loss (major) 2 | . . 2 Misfires 1 | . . 1 Weapon Failures 1 | . . 1 Overload Shots . | . . . Overflow Damage 24 | . . 24 Projectiles . | . . . Explosions 24 | . . 24 Melee . | . . . Knockbacks . | . . . Impact . | . . . Kinetic . | . . . Secondary . | . . . Self-Inflicted Damage 164 | . 28 136 Shots 3 | . 1 2 Rammed 8 | . . 8 Targets Rammed 9 | . 1 8 Kicked 1 | . 1 . Crushed . | . . . Highest Temperature 351 | . 303 351 Average Temperature 105 | . 103 108 Received Heat Transfer 882 | . 288 594 Effects 2 | . 2 . Interference 2 | . 2 . Siege Activations . | . . . Martial Activations . | . . . Shielding Activations . | . . . Robots Disrupted . | . . . Combat Hostiles . | . . . Robots Corrupted . | . . . Combat Hostiles . | . . . Parts Fried 2 | . . 2 Impact Corruptions . | . . . Robots Melted 1 | . 1 . Combat Hostiles 1 | . 1 . Parts Melted 9 | . 9 . Heat Transferred 2928 | . 2443 485 Parts Sabotaged . | . . . Parts Stolen . | . . . Parts Stripped . | . . . Power Chain Reactions 3 | . 1 2 Alert | -11 -10 -9 ------- Run | Yrd Mat Mat Maximum Alert Level . | . . . Low Security (%) 100 | 100 100 100 Level 1 . | . . . Level 2 . | . . . Level 3 . | . . . Level 4 . | . . . Level 5 . | . . . High Security . | . . . Max Security . | . . . Peak Influence 191 | . 191 142 Initial 31 | . . 31 Average 67 | . 82 53 Influence Increases 874 | . 456 418 Destroy 0b10 Robot/C 460 | . 300 160 Destroy 0b10 Robot/NC 35 | . 10 25 Destroy Leader 102 | . 50 52 Disable Machine 75 | . 15 60 Destroy Structure 37 | . 6 31 Lose Combat Pursuer 165 | . 75 90 Influence Decreases 830 | . 381 449 Entered New Map 44 | . . 44 Time Decay 626 | . 341 285 Lost Part 160 | . 40 120 Squads Dispatched 4 | . 1 3 Investigation 2 | . 1 1 Extermination . | . . . Reinforcement 2 | . . 2 Assault . | . . . Garrison . | . . . Intercept . | . . . Searches Triggered . | . . . Construction Impeded 1 | . . 1 Haulers Reinforced . | . . . Active Scanning Responses . | . . . Cargo Convoy Interrupts . | . . . Stealth | -11 -10 -9 --------- Run | Yrd Mat Mat Distress Signals 1 | . . 1 Communications Jammed . | . . . Distress Signals . | . . . Times Spotted 58 | . 28 30 Peak Tracking Total 5 | . 4 5 Tactical Retreats 8 | . 4 4 Traps | -11 -10 -9 ------- Run | Yrd Mat Mat Traps Triggered 4 | . 1 3 Indirectly . | . . . Trap Hack Attempts . | . . . Triggered . | . . . Disarmed . | . . . Reprogrammed . | . . . Reused . | . . . Traps Extracted . | . . . Installed . | . . . Triggered . | . . . Machines | -11 -10 -9 ---------- Run | Yrd Mat Mat Machines Disabled 5 | . 1 4 Max in Single Turn 2 | . 1 2 Machines Repaired . | . . . Machines Dismantled . | . . . Machines Sabotaged . | . . . Overloaded Fab Kills . | . . . Hacking | -11 -10 -9 --------- Run | Yrd Mat Mat Machines Accessed 2 | . . 2 Terminals 1 | . . 1 Fabricators . | . . . Repair Stations . | . . . Recycling Units . | . . . Scanalyzers 1 | . . 1 Garrison Access . | . . . Total Hacks 6 | . . 6 Successful 5 | . . 5 Failed 1 | . . 1 Catastrophic . | . . . Database Lockouts . | . . . Manual . | . . . Terminals 2 | . . 2 Fabricators . | . . . Repair Stations . | . . . Recycling Units . | . . . Scanalyzers 4 | . . 4 Garrison Access . | . . . Terminal Hacks 1 | . . 1 Locate Traps 1 | . . 1 Fabricator Hacks . | . . . Repair Station Hacks . | . . . Recycling Unit Hacks . | . . . Scanalyzer 4 | . . 4 Insert Component 1 | . . 1 Analyze 1 | . . 1 Retrieve Study 2 | . . 2 Garrison Access Hacks . | . . . Unauthorized Hacks . | . . . Terminals . | . . . Fabricators . | . . . Repair Stations . | . . . Recycling Units . | . . . Scanalyzers . | . . . Garrison Access . | . . . Data Cores Recovered . | . . . Used . | . . . Hacking Detections 1 | . . 1 Full Trace Events . | . . . Feedback Events . | . . . Feedback Blocked . | . . . Robot Schematics Acquired . | . . . Robots Built . | . . . Authchips . | . . . Time . | . . . Total Robot Build Rating . | . . . Part Schematics Acquired 1 | . . 1 Parts Built . | . . . Authchips . | . . . Time . | . . . Total Part Build Rating . | . . . Part Studies Acquired 2 | . . 2 Parts Repaired . | . . . Time . | . . . Parts Recycled . | . . . Recycled Matter . | . . . Retrieved Matter . | . . . Retrieved Components . | . . . Parts Scanalyzed 1 | . . 1 Part Schematics Acquired 1 | . . 1 Parts Damaged . | . . . Bothacking | -11 -10 -9 ------------ Run | Yrd Mat Mat Used RIF Installer . | . . . Robots Hacked . | . . . Non-combat . | . . . Combat . | . . . Robot Hacks Applied . | . . . Relay Couplers Released . | . . . Fabnet Peak Effective % . | . . . Robots Rewired . | . . . Allies Hacked . | . . . Hacks Repelled . | . . . Allies | -11 -10 -9 -------- Run | Yrd Mat Mat Total Allies . | . . . Largest Group . | . . . Highest-Rated Group . | . . . Highest-Rated Ally . | . . . Total Orders . | . . . Ally Attacks . | . . . Total Damage . | . . . Kills . | . . . Allies Corrupted . | . . . Allies Melted . | . . . Intel | -11 -10 -9 ------- Run | Yrd Mat Mat Active Infowar (turns) . | . . . Robot Analysis Total . | . . . Derelict Logs Recovered . | . . . Drone Launches . | . . . Drone Recoveries . | . . . Exploration | -11 -10 -9 ------------- Run | Yrd Mat Mat Turns Passed 1834 | 54 1005 775 Spaces Moved 1382 | 46 632 704 Core 92 | 23 5 64 Treads . | . . . Legs 353 | 23 330 . Wheels 602 | . 93 509 Hover . | . . . Flight 335 | . 204 131 Fastest Speed 37 | 50 95 37 Average Speed 97 | 91 116 81 Slowest Speed 200 | 150 150 200 Overloaded Moves . | . . . Propulsion Burnouts . | . . . Robots Hopped 2 | . . 2 Potential Cave-ins . | . . . Cave-ins Triggered . | . . . Exploration Rate (%) 43 | 3 78 48 Regions Visited 2 Branch Regions . Pre-discovered Areas . | . . . Known Exits Taken . | . . . Unknown Exits Taken 2 | 1 1 . Scrap Searched . | . . . Spaces Dug . | . . . Terrain Destroyed 39 | . 3 36 Melee . | . . . Projectile . | . . . AOE 39 | . 3 36 Terrain Rammed . | . . . Walls Destroyed . | . . . Machines Disabled . | . . . Actions | -11 -10 -9 --------- Run | Yrd Mat Mat Total 1702 | 57 795 850 Wait 108 | . 67 41 Move 1376 | 45 631 700 Hop 2 | . . 2 Pick Up 46 | 6 15 25 Fast Attach 6 | 2 . 4 Attach 34 | 4 10 20 Detach . | . . . Swap 2 | . 2 . Drop 17 | . 9 8 Fire 102 | . 60 42 Melee . | . . . Ram 8 | . . 8 Kick 1 | . 1 . Crush . | . . . Escape Stasis . | . . . Rewire . | . . . Trap . | . . . Miscellaneous . | . . . Route ------- -11/Scrapyard -10/Materials (discovered 4 exits: *Mat x3 / [*Min]) -9/Materials (discovered 1 exit: [*Mat]) History --------- Turn | Location | Event 12 | -11/Scrapyard | Discovered new exit (range 16) 55 | -11/Scrapyard | Entered Materials 192 | -10/Materials | Discovered new exit (range 5) 327 | -10/Materials | Build established: Mutant 354 | -10/Materials | Discovered new exit (range 8) 459 | -10/Materials | Core integrity fell below 50% 655 | -10/Materials | Derelicts attacked the area 755 | -10/Materials | Discovered new exit (range 10) 835 | -10/Materials | Discovered new exit (range 13) 923 | -10/Materials | Core integrity fell below 20% 962 | -10/Materials | Lost 4 parts (1p2n1w) 1060 | -10/Materials | Entered another Materials area 1060 | -9/Materials | Evolved 2 slots: Utility x2 1437 | -9/Materials | Lost 3 parts (1p1u1w) 1445 | -9/Materials | Core integrity fell below 50% 1493 | -9/Materials | Lost 3 parts (1n1u1w) 1553 | -9/Materials | Discovered new exit (range 12) 1801 | -9/Materials | Core integrity fell below 20% 1835 | -9/Materials | Destroyed by Y-45 Defender with Beam Rifle Last Messages --------------- 01758_ Acquired Adv. Visual Processing Unit. 01764_ Acquired Recoil Stabilizer. 01772_ Acquired Lgt. Deuterium Engine. 01782_ Slammed into K-01 Serf. 01782_ K-01 Serf destroyed. 01783_ Acquired 26 matter. 01783_ Extracted 48 matter. 01783_ K-01 Serf collects debris. 01803_ Hvy. EM Pulse Gun destroyed. 01808_ System corrupted: Heat flow error (+162). 01810_ Wheel destroyed. 01810_ System corrupted: Beam Cannon failed to cycle. 01823_ Acquired Med. Laser. 01827_ G-47 Trooper destroyed. 01831_ Recoil Stabilizer destroyed. 01832_ Beam Cannon destroyed. 01833_ Dropped Sml. Battery. 01835_ Acquired Lgt. Nuclear Core. 01835_ R-06 Scavenger collects Sml. Battery. Map ----- +----------------------------------------------------+ | ????#### #???# #??????????????????????????????? | | ????# #???# #?###+##???????????????????????? | | ????# ####???# #? ???????????????????????? | | ????# #??????# #? [????????????????????????? | | ????# #??????# ## ????????????????????????? | | ????# #??????# ## ?????????????????????????? | | ????# #??????# ## ?????????????????????????? | | ????# #??????# ## ] ??????????????????????????? | | ????# #??????# ## ??????????????????????????? | | ????# #??????# ## ???????????????????????????? | | ????# #??????# ## ???????????????????????????? | | ????# #??????# ##+#???????????????????????????? | | ????# #??????# #???????????????????????????? | | ????# #??????# #???????????????????????????? | | ?####+#??????# #####???????????????????????? | | ?# #??????#^ #???????????????????????? | | ?# ! #??????+ * #???????????????????????? | | ?# #??????# #???????????????????????? | | ?# #"?????# !!#???????????????????????? | | ?# # ???# #???????????????????????? | | ?# #?? ??# !!#???????????????????????? | | ?# ##+##+## ######## ##?????????????????? | | ?# ## *r #??????????? | | ?# ## #####/########?????????????????? | | ?####+## ## grr !!#???????????????????? | | ????# ## """m@ !!#???????????????????? | | ????# # "Y"Y #???????????????????? | | ????# """ ## #???????????????????? | | ????# """ ############???????????????????? | | ????# """ #??????????????????????????????? | | ????# #??????????????????????????????? | | ????# #??????????????????????????????? | | ????# #??????????????????????????????? | | ????# "T" #??????????????????????????????? | | ????# """ +????????????????????????????? | | ????# ##### #????????????????????????????? | | ????# #???# #????????????????????????????? | | ????# #???# / ???????????????????????????? | | ????# #?????## #####??????????????????????????? | | ????# #??????? #??????????????????????????????? | | ????# #??????? ##?##??????????????????????????? | | ????# #??????? ?????????????????????????? | | ????# #??????? ??????????????? ????????? | | ????# #??????? ?? ?????????? ??????? | | ????# #??????? ?? ?????????? ????? | | ????# #####+## #? ????????? ???? | | ????# #?#+????????? ???? | | ????#### ### ????????? ???? | | ???????# ? ######### ????? | | ???????# ######### ????? | +----------------------------------------------------+ Best States ------------- Heat Dissipation 35 Energy Generation 14 Energy Capacity 140 Matter Stores 300 Matter Capacity 300 Sight Range 16 Terrain Scan Density 10 Armor Coverage 150 Evasion (%) 62 Targeting Accuracy 5 Recoil Reduction 8 Defensive Hacking 30 Item Schematics ----------------- System Shield | -9/Materials | Scanalyzed Robot Schematics ------------------ None Fabricated ------------ Nothing Repaired ---------- Nothing Studied --------- Arm. Wheel | -9/Materials | Hacked Lgt. Ion Engine | -9/Materials | Hacked Alien Tech Used ----------------- None Achievements -------------- None Challenges ------------ None Game ------ Seed SurveybotAerolevCoupler Manual? 0 Play Time 00:23:14 Cumulative 12.0 hours Start 2026.06.22 @ 22:24:10 End 2026.06.22 @ 22:44:54 Sessions 1 Manual Loads 0 Difficulty Rogue Special Mode None Game No. 27 Rogue 27 Adventurer 0 Explorer 0 Win Type - Total 0 Types 0/0/0/0/0/0/0/0/0/0 Lore% 2 Gallery% 14 Achievement% 8 Wizard Run 0 Options --------- Layout 1 ASCII 0 Keyboard 0 Movement Arrows Keybinds 0 Fullscreen 1 Font 36/Smallcaps Map View 51x40 Zoom Use 0% Tactical HUD 1 Map Filters NONE Filters NONE Steam 1 RUN: 5b067ec3-095b-47db-8a96-7e1db1a041d0